Cogmind - Beta 11 X7 @@@ ROGUE MODE // 2021.08.25 @ 19:40:57 Player: Stryker Result: Self-destructed Performance ------------- Evolutions (4) 2000 Regions Visited (14) 2800 Robots Destroyed (117) 585 Value Destroyed (3542) 3542 Prototype IDs (26) 520 Alien Tech Used (0) 0 Bonus (306) 306 TOTAL SCORE: 9753 Bonus ------- High Alert Combat Kills 22 Follower Combat Kills 140 Met Data Miner 300 Friendly Fire -156 Cogmind --------- Core Integrity 788/850 Matter 228/300 Energy 100/100 System Corruption 2% Temperature Cool (0) Movement Core (750) Ox14 Location -6/Factory Parts ------- > --- POWER (1) -------- (None) > --- PROPULSION (5) --- Gravmag System > --- UTILITY (7) ------ Advanced Heat Sink High-capacity Storage Unit Hacking Suite Hacking Suite > --- WEAPON (2) ------- Katana > --- INVENTORY (20) --- Advanced Heat Sink Improved Cooling System Huge Storage Unit Faulty Mini Assault Cannon Peak State ------------ > --- POWER ------------ Fission Core > --- PROPULSION ------- Spiked Medium Treads Armored Huge Wheel Gravmag System > --- UTILITY ---------- Advanced Heat Sink High-capacity Storage Unit Structural Scanner Improved Sensor Array Hacking Suite Hacking Suite Drone Bay > --- WEAPON ----------- Mini Assault Cannon Katana > --- INVENTORY -------- Advanced Heat Sink Improved Cooling System Huge Storage Unit [Rating: 52] Favorites ----------- Power Improved Ion Engine Engine Improved Ion Engine Power Core Enhanced Nuclear Core Propulsion Light Treads Treads Light Treads Leg Carbon-fiber Leg Wheel Armored Wheel Hover Unit Gravmag System Flight Unit VTOL Module Utility Large Storage Unit Device Structural Scanner Storage Large Storage Unit Processor Advanced Targeting Computer Hackware Hacking Suite Protection Reactive Plating Weapon Improved Assault Rifle Energy Gun EM Pulse Gun Energy Cannon Heavy Ion Cannon Ballistic Gun Improved Assault Rifle Ballistic Cannon Gauss Cannon Launcher Mini Grenade Launcher Slashing Weapon Makeshift Axe Build | -11 -10 -9 -9 -9 -8 -8 -7 -7 -7 -7 -7 -7 -6 -6 ------- Run | Scr Mat Mat Min Exi Min Mat Fac Was Fac Low Low Dat Pro Fac Slots Evolved 8 | . . 2 . . . 2 2 . . . . . . 2 Power . | . . . . . . . . . . . . . . . Propulsion 3 | . . 1 . . . 1 . . . . . . . 1 Utility 5 | . . 1 . . . 1 2 . . . . . . 1 Weapon . | . . . . . . . . . . . . . . . Parts Attached 186 | 2 11 34 . . 1 15 12 5 44 30 16 . 6 10 Power 15 | . 1 6 . . . 1 1 . 4 1 . . . 1 Engine 9 | . 1 6 . . . . . . 2 . . . . . Core 6 | . . . . . . 1 1 . 2 1 . . . 1 Reactor . | . . . . . . . . . . . . . . . Propulsion 50 | . 4 12 . . . 8 2 3 4 9 4 . 3 1 Treads 36 | . 2 9 . . . 8 1 2 3 6 4 . 1 . Leg 3 | . . . . . . . . . . 3 . . . . Wheel 9 | . 2 3 . . . . 1 1 1 . . . 1 . Hover 1 | . . . . . . . . . . . . . . 1 Flight 1 | . . . . . . . . . . . . . 1 . Utility 87 | 1 3 9 . . 1 5 7 . 28 16 8 . 3 6 Device 46 | 1 1 3 . . . 1 4 . 16 12 3 . 3 2 Storage 8 | . 1 . . . . . 2 . 2 . 1 . . 2 Processor 4 | . . . . . . . . . 4 . . . . . Hackware 3 | . . . . . . . . . . . 1 . . 2 Protection 26 | . 1 6 . . 1 4 1 . 6 4 3 . . . Artifact . | . . . . . . . . . . . . . . . Weapon 34 | 1 3 7 . . . 1 2 2 8 4 4 . . 2 Energy Gun 2 | . 1 . . . . . . . . . 1 . . . Energy Cannon 4 | . . . . . . . . 1 2 1 . . . . Ballistic Gun 15 | 1 2 7 . . . 1 . . 1 1 2 . . . Ballistic Cannon 6 | . . . . . . . 1 . 3 1 . . . 1 Launcher 1 | . . . . . . . . 1 . . . . . . Special Weapon . | . . . . . . . . . . . . . . . Impact Weapon . | . . . . . . . . . . . . . . . Slashing Weapon 6 | . . . . . . . 1 . 2 1 1 . . 1 Piercing Weapon . | . . . . . . . . . . . . . . . Special Melee Weapon . | . . . . . . . . . . . . . . . Unidentified Prototypes 3 | . . 1 . . . . . . 1 . . . . 1 Parts Lost 37 | . 2 2 . . 1 1 1 3 . 9 10 . 1 7 Power 3 | . 1 . . . . . . . . 1 . . . 1 Propulsion 17 | . . . . . . . 1 1 . 6 5 . 1 3 Utility 11 | . . 1 . . 1 1 . 1 . 1 3 . . 3 Weapon 6 | . 1 1 . . . . . 1 . 1 2 . . . Highest Loss Streak 7 | . 1 1 . . 1 1 1 3 . 5 7 . 1 6 Average Slot Usage (%) 94 | . 99 99 100 100 100 99 99 85 98 97 83 30 39 70 Engine 5 | . 14 11 11 11 11 2 . . 3 . . . . . Core 3 | . . . . . . 6 7 5 3 7 6 . . 4 Treads 20 | . 13 22 22 22 22 26 23 20 27 16 7 15 13 10 Leg 2 | . . . . . . . . . . 8 15 . . . Wheel 6 | . 13 10 11 11 11 9 6 5 2 4 . . 4 6 Device 11 | . 7 6 11 11 5 9 19 19 15 10 11 7 20 23 Storage 9 | . 14 11 11 11 11 9 11 15 7 7 6 . . 4 Processor 7 | . . . . . . . . . 19 20 12 . . . Protection 8 | . 6 15 11 11 16 18 14 4 2 4 3 . . . Energy Gun 1 | . 13 . . . . . . . . . . . . . Energy Cannon 2 | . . . . . . . . 7 7 4 6 . . . Ballistic Gun 9 | . 14 21 22 22 22 18 8 . . 3 3 . . . Ballistic Cannon 2 | . . . . . . . 4 . 5 6 2 . . . Naked Turns . | . . . . . . . . . . . . . . . Heaviest Build 61 | 12 29 39 38 38 40 52 61 49 52 56 61 3 4 61 Greatest Support 80 | 20 20 20 12 12 12 46 12 40 80 50 50 3 3 28 Greatest Overweight (x) 5 | . 2 3 3 3 3 4 5 4 4 4 1 . 1 2 Average Overweight (x) 2 | . 1 2 3 3 3 3 4 2 1 2 . . . 1 Largest Inventory Capacity 25 | 8 15 15 15 15 15 15 15 15 25 15 15 5 5 20 Average Capacity 14 | 8 13 15 15 15 15 15 15 15 15 15 13 5 5 17 Most Carried 15 | 7 15 15 15 15 15 15 15 15 15 15 11 4 5 5 Average Carried 13 | 6 13 14 14 15 14 14 14 14 14 13 8 4 4 3 Final Capacity 20 | 8 15 15 15 15 15 15 15 15 15 15 5 5 5 20 Final Carried 15 | 7 15 15 15 15 15 15 15 13 15 10 4 4 5 4 Class Distribution -------------------- 38% | Mutant 38% | Scavenger-Mutant 14% | Scavenger-Skirmisher 4% | Hacker-Mutant Dominant Class ---------------- Mutant | -10/Materials Scavenger-Mutant | -9/Materials Mutant | -9/Mines Mutant | -9/Exiles Scavenger-Mutant | -8/Mines Scavenger-Mutant | -8/Materials Mutant | -7/Factory Infiltrator-Mutant | -7/Waste Scavenger-Mutant | -7/Factory Scavenger-Mutant | -7/Lower Caves Scavenger-Skirmisher | -7/Lower Caves Mutant | -7/Data Miner Mutant | -6/Proximity Caves Hacker-Mutant | -6/Factory Resources | -11 -10 -9 -9 -9 -8 -8 -7 -7 -7 -7 -7 -7 -6 -6 ----------- Run | Scr Mat Mat Min Exi Min Mat Fac Was Fac Low Low Dat Pro Fac Matter Collected 4136 | 238 279 925 36 . 130 337 247 95 646 930 196 . 65 12 Remotely 595 | . . 511 36 . 48 . . . . . . . . . Salvage Created 4774 | 109 527 1119 36 . 252 437 322 365 691 830 86 . . . Parts 259 | 5 33 84 2 . 9 33 15 . 35 37 6 . . . Haulers Intercepted 7 | . 1 3 . . . . . . 3 . . . . . Recyclers Shooed 4 | . . 1 . . . 1 1 . 1 . . . . . Parts Field Recycled . | . . . . . . . . . . . . . . . Retrieved Matter . | . . . . . . . . . . . . . . . Parts Self-Destructed 58 | . . . . . . . . . . 38 15 . 5 . Prevented . | . . . . . . . . . . . . . . . Kills | -11 -10 -9 -9 -9 -8 -8 -7 -7 -7 -7 -7 -7 -6 -6 ------- Run | Scr Mat Mat Min Exi Min Mat Fac Was Fac Low Low Dat Pro Fac Combat Hostiles Destroyed 90 | . 8 26 3 . 7 11 4 1 7 20 3 . . . Melee 1 | . . . . . . . 1 . . . . . . . Guns 62 | . 8 26 3 . 7 11 1 . . 5 1 . . . Cannons 26 | . . . . . . . 2 . 7 15 2 . . . AOE 1 | . . . . . . . . 1 . . . . . . Classes Destroyed 17 | 2 7 2 . . 2 1 . 1 2 . . . . . Worker 3 | . 1 . . . . . . . 2 . . . . . Builder 3 | . 1 1 . . . . 1 . . . . . . . Tunneler 1 | 1 . . . . . . . . . . . . . . Hauler 7 | . 1 3 . . . . . . 3 . . . . . Recycler 5 | 1 1 . . . . . 1 . 2 . . . . . Mechanic 2 | . 1 . . . . . . . 1 . . . . . Operator 1 | . . 1 . . . . . . . . . . . . Watcher 4 | . 2 1 . . . . 1 . . . . . . . Swarmer 26 | . 3 6 3 . 3 4 . . 1 4 2 . . . Grunt 37 | . 5 12 . . 2 3 3 . 1 10 1 . . . Brawler 2 | . . . . . 1 . . . . 1 . . . . Duelist 3 | . . . . . . . . . 1 2 . . . . Sentry 15 | . . 8 . . . 2 1 . 2 2 . . . . Specialist 1 | . . . . . . 1 . . . . . . . . Hunter 3 | . . . . . 1 1 . . . 1 . . . . Programmer 2 | . . . . . . . . . 2 . . . . . Compactor 1 | . . . . . . . . 1 . . . . . . Thug 1 | . . . . . . . . 1 . . . . . . Best Kill Streak 5 | 2 5 5 3 . 3 4 2 1 4 5 2 . . . Combat Bots Only 5 | . 3 4 3 . 3 4 2 1 3 5 2 . . . Max Kills in Single Turn 2 | 1 2 1 1 . 1 1 1 1 1 2 1 . . . Gunslinging . | . . . . . . . . . . . . . . . Exploded 1 | . . . . . . . . 1 . . . . . . Melee 1 | . . . . . . . 1 . . . . . . . Uniques/NPCs Destroyed . | . . . . . . . . . . . . . . . Combat | -11 -10 -9 -9 -9 -8 -8 -7 -7 -7 -7 -7 -7 -6 -6 -------- Run | Scr Mat Mat Min Exi Min Mat Fac Was Fac Low Low Dat Pro Fac Damage Taken 8447 | . 473 1034 88 . 402 630 443 203 640 2211 1191 . 165 967 Core 1009 | . 113 123 9 . 52 44 35 16 50 313 135 . 57 62 Absorbed by Shields . | . . . . . . . . . . . . . . . Core Remaining (%) 62 | 100 54 . . . 54 92 . . . . . . 13 . Volleys Fired 311 | 6 50 81 6 . 20 32 13 4 39 53 7 . . . Largest 2 | 2 2 2 2 . 2 2 2 2 2 2 2 . . . Hottest 143 | 60 60 60 46 . 46 46 71 95 113 143 143 . . . Shots Fired 605 | 12 99 162 12 . 40 64 26 8 63 104 15 . . . Gun 441 | 12 99 162 12 . 40 64 13 . . 32 7 . . . Cannon 160 | . . . . . . . 13 4 63 72 8 . . . Launcher 4 | . . . . . . . . 4 . . . . . . Special . | . . . . . . . . . . . . . . . Kinetic 456 | 6 50 151 12 . 40 64 26 . 24 75 8 . . . Thermal 121 | 6 36 . . . . . . 4 39 29 7 . . . Explosive 4 | . . . . . . . . 4 . . . . . . Electromagnetic 24 | . 13 11 . . . . . . . . . . . . Robot Hit Streak 25 | 3 6 18 3 . 5 25 7 9 24 9 8 . . . Robot Miss Streak 9 | 2 7 4 4 . 3 1 2 . 1 9 6 . . . Penetration Max 1 | . . . . . . . . . . 1 . . . . Secondary Targets 5 | . . 1 1 . 2 1 . . . . . . . . Max Gunslinging Chain 1 | . . 1 1 . 1 1 . . . . . . . . Shots Hit Robots 440 | 6 59 135 5 . 29 56 24 8 42 62 10 . . 4 Core Hits 203 | 3 28 56 3 . 11 22 10 2 20 43 5 . . . Critical Kills 4 | . . 4 . . . . . . . . . . . . Critical Parts Destroyed 3 | . 2 1 . . . . . . . . . . . . Critical Strikes 18 | . 3 5 . . . . 3 . 1 5 . . . 1 Destroy 7 | . 2 5 . . . . . . . . . . . . Blast 9 | . . . . . . . 3 . 1 5 . . . . Corrupt 1 | . 1 . . . . . . . . . . . . . Sever 1 | . . . . . . . . . . . . . . 1 Melee Attacks 21 | . . . . . . . 9 . 3 1 1 . . 7 Impact . | . . . . . . . . . . . . . . . Slashing 21 | . . . . . . . 9 . 3 1 1 . . 7 Piercing . | . . . . . . . . . . . . . . . Sneak Attacks 3 | . . . . . . . 3 . . . . . . . Combat Hostiles . | . . . . . . . . . . . . . . . Follow-up Attacks . | . . . . . . . . . . . . . . . Damage Inflicted 8560 | 69 636 2024 80 . 405 827 810 450 1186 1682 269 . . 122 Guns 4775 | 69 636 2024 80 . 405 827 147 . . 507 80 . . . Cannons 2925 | . . . . . . . 267 108 1186 1175 189 . . . Explosions 342 | . . . . . . . . 342 . . . . . . Melee 518 | . . . . . . . 396 . . . . . . 122 Ramming . | . . . . . . . . . . . . . . . Kinetic 5792 | 48 355 1914 80 . 405 827 414 . 488 1181 80 . . . Thermal 1701 | 21 184 . . . . . . 108 698 501 189 . . . Explosive 342 | . . . . . . . . 342 . . . . . . Electromagnetic 207 | . 97 110 . . . . . . . . . . . . Impact . | . . . . . . . . . . . . . . . Slashing 518 | . . . . . . . 396 . . . . . . 122 Piercing . | . . . . . . . . . . . . . . . Highest Corruption 25 | . 5 . . . . . . 13 14 14 25 25 25 2 Average Corruption 12 | . 2 . . . . . . 8 13 14 15 25 25 2 Corruption Purged . | . . . . . . . . . . . . . . . Effects 167 | . 6 . . . . . . 7 66 57 23 3 5 . Message Errors 44 | . 2 . . . . . . 2 23 8 8 1 . . Matter Fused 39 | . . . . . . . . 1 14 14 6 1 3 . Heat Flow Errors 18 | . 1 . . . . . . . 7 5 3 . 2 . Energy Discharges 16 | . 1 . . . . . . . 7 6 2 . . . Parts Rejected 3 | . . . . . . . . 2 . 1 . . . . Data Loss (minor) 18 | . 1 . . . . . . 1 11 4 . 1 . . Data Loss (major) 7 | . . . . . . . . . 2 4 1 . . . Misfires 7 | . . . . . . . . . 1 5 1 . . . Alerts 4 | . . . . . . . . . . 3 1 . . . Misdirections 2 | . . . . . . . . 1 . . 1 . . . Weapon Failures 9 | . 1 . . . . . . . 1 7 . . . . Overload Shots . | . . . . . . . . . . . . . . . Overflow Damage 187 | . . . . . . . 143 . 38 2 4 . . . Projectiles 44 | . . . . . . . . . 38 2 4 . . . Explosions . | . . . . . . . . . . . . . . . Melee 143 | . . . . . . . 143 . . . . . . . Knockbacks 14 | . . . . . . . 1 . 8 5 . . . . Impact . | . . . . . . . . . . . . . . . Kinetic 14 | . . . . . . . 1 . 8 5 . . . . Secondary . | . . . . . . . . . . . . . . . Self-Inflicted Damage 111 | . . 29 . . . . . 82 . . . . . . Shots 3 | . . 1 . . . . . 2 . . . . . . Rammed . | . . . . . . . . . . . . . . . Targets Rammed . | . . . . . . . . . . . . . . . Kicked . | . . . . . . . . . . . . . . . Crushed . | . . . . . . . . . . . . . . . Highest Temperature 384 | . 244 28 . . 68 94 . . 266 384 330 . 232 . Average Temperature 79 | . 62 7 . . 40 29 . . 59 148 137 . 129 . Received Heat Transfer 2373 | . 249 396 . . 117 243 237 . 123 630 366 . . 12 Effects 8 | . . . . . . . . . 3 5 . . . . Shutdowns 1 | . . . . . . . . . . 1 . . . . Energy Bleed 2 | . . . . . . . . . . 2 . . . . Interference 3 | . . . . . . . . . 3 . . . . . Matter Decay 1 | . . . . . . . . . . 1 . . . . Short Circuit 1 | . . . . . . . . . . 1 . . . . Siege Activations . | . . . . . . . . . . . . . . . Robots Corrupted . | . . . . . . . . . . . . . . . Combat Hostiles . | . . . . . . . . . . . . . . . Parts Fried 1 | . . 1 . . . . . . . . . . . . Impact Corruptions . | . . . . . . . . . . . . . . . Robots Melted . | . . . . . . . . . . . . . . . Combat Hostiles . | . . . . . . . . . . . . . . . Parts Melted 2 | . . . . . . . . . 1 1 . . . . Heat Transferred 2399 | 50 425 . . . . . . 148 925 629 222 . . . Parts Sabotaged . | . . . . . . . . . . . . . . . Parts Stolen . | . . . . . . . . . . . . . . . Parts Stripped . | . . . . . . . . . . . . . . . Power Chain Reactions . | . . . . . . . . . . . . . . . Missiles Intercepted . | . . . . . . . . . . . . . . . Alert | -11 -10 -9 -9 -9 -8 -8 -7 -7 -7 -7 -7 -7 -6 -6 ------- Run | Scr Mat Mat Min Exi Min Mat Fac Was Fac Low Low Dat Pro Fac Peak Influence 463 | 10 308 463 254 . 160 315 297 88 148 . . . . 48 Initial 169 | . 6 53 169 . . 62 72 33 47 . . . . 34 Average 157 | 4 135 290 251 . 71 159 177 51 67 . . . . 30 Maximum Alert Level 2 | . 1 2 1 . . 1 1 . . . . . . . Low Security (%) 67 | 100 80 22 3 . 100 79 59 100 100 . . . . 100 Level 1 28 | . 19 60 96 . . 20 40 . . . . . . . Level 2 4 | . . 16 . . . . . . . . . . . . Level 3 . | . . . . . . . . . . . . . . . Level 4 . | . . . . . . . . . . . . . . . Level 5 . | . . . . . . . . . . . . . . . High Security . | . . . . . . . . . . . . . . . Max Security . | . . . . . . . . . . . . . . . Squads Dispatched 9 | . . 2 . . . 2 1 . 3 . 1 . . . Investigation 2 | . . 1 . . . . 1 . . . . . . . Extermination 3 | . . . . . . . . . 3 . . . . . Reinforcement 3 | . . 1 . . . 2 . . . . . . . . Assault 1 | . . . . . . . . . . . 1 . . . Garrison . | . . . . . . . . . . . . . . . Intercept . | . . . . . . . . . . . . . . . Construction Impeded . | . . . . . . . . . . . . . . . Haulers Reinforced . | . . . . . . . . . . . . . . . Active Scanning Responses . | . . . . . . . . . . . . . . . Cargo Convoy Interrupts . | . . . . . . . . . . . . . . . Stealth | -11 -10 -9 -9 -9 -8 -8 -7 -7 -7 -7 -7 -7 -6 -6 --------- Run | Scr Mat Mat Min Exi Min Mat Fac Was Fac Low Low Dat Pro Fac Distress Signals 9 | . 3 5 . . . . 1 . . . . . . . Communications Jammed 1 | . . . . . . . 1 . . . . . . . Distress Signals 1 | . . . . . . . 1 . . . . . . . Times Spotted 166 | . 20 42 3 . 7 25 8 6 10 23 14 . 4 4 Peak Tracking Total 9 | . 5 6 3 . 3 8 4 5 4 9 9 . 4 4 Tactical Retreats 10 | . 1 3 . . . 3 1 . . 1 1 . . . Traps | -11 -10 -9 -9 -9 -8 -8 -7 -7 -7 -7 -7 -7 -6 -6 ------- Run | Scr Mat Mat Min Exi Min Mat Fac Was Fac Low Low Dat Pro Fac Traps Triggered 6 | . 3 1 . . . . 1 . 1 . . . . . Indirectly . | . . . . . . . . . . . . . . . Trap Hack Attempts . | . . . . . . . . . . . . . . . Triggered . | . . . . . . . . . . . . . . . Disarmed . | . . . . . . . . . . . . . . . Reprogrammed . | . . . . . . . . . . . . . . . Reused . | . . . . . . . . . . . . . . . Traps Extracted . | . . . . . . . . . . . . . . . Installed . | . . . . . . . . . . . . . . . Triggered . | . . . . . . . . . . . . . . . Machines | -11 -10 -9 -9 -9 -8 -8 -7 -7 -7 -7 -7 -7 -6 -6 ---------- Run | Scr Mat Mat Min Exi Min Mat Fac Was Fac Low Low Dat Pro Fac Machines Disabled 5 | . . 1 1 . . . . . 2 1 . . . . Max in Single Turn 1 | . . 1 1 . . . . . 1 1 . . . . Machines Sabotaged . | . . . . . . . . . . . . . . . Garrisons Compromised . | . . . . . . . . . . . . . . . Overloaded Fab Kills . | . . . . . . . . . . . . . . . Fab Network Shutdowns . | . . . . . . . . . . . . . . . Hacking | -11 -10 -9 -9 -9 -8 -8 -7 -7 -7 -7 -7 -7 -6 -6 --------- Run | Scr Mat Mat Min Exi Min Mat Fac Was Fac Low Low Dat Pro Fac Machines Accessed 39 | . 3 10 . 1 . 5 4 . 8 1 . 4 . 3 Terminals 26 | . 2 9 . . . 5 3 . 5 . . . . 2 Fabricators 3 | . . . . . . . . . 2 . . . . 1 Repair Stations 2 | . 1 1 . . . . . . . . . . . . Recycling Units 1 | . . . . . . . . . 1 . . . . . Scanalyzers . | . . . . . . . . . . . . . . . Garrison Access 1 | . . . . . . . 1 . . . . . . . Total Hacks 133 | . 11 35 . 4 . 19 15 . 18 1 . 23 . 7 Successful 81 | . 8 17 . 4 . 9 7 . 9 1 . 23 . 3 Failed 52 | . 3 18 . . . 10 8 . 9 . . . . 4 Catastrophic 4 | . 1 3 . . . . . . . . . . . . Database Lockouts . | . . . . . . . . . . . . . . . Manual 58 | . 7 19 . . . 14 5 . 9 . . . . 4 Terminals 85 | . 9 28 . . . 19 13 . 12 . . . . 4 Fabricators 6 | . . . . . . . . . 3 . . . . 3 Repair Stations 9 | . 2 7 . . . . . . . . . . . . Recycling Units 3 | . . . . . . . . . 3 . . . . . Scanalyzers . | . . . . . . . . . . . . . . . Garrison Access 2 | . . . . . . . 2 . . . . . . . Terminal Hacks 51 | . 4 7 . 4 . 6 5 . 1 1 . 23 . . Record 15 | . . . . 4 . . . . . . . 11 . . Part Schematic 8 | . 3 . . . . 1 . . . . . 4 . . Robot Schematic 5 | . . . . . . . . . . . . 5 . . Robot Analysis 2 | . . 1 . . . 1 . . . . . . . . Prototype ID Bank 10 | . 1 3 . . . 1 2 . . . . 3 . . Open Door 1 | . . . . . . . . . . 1 . . . . Branch Access Points 1 | . . . . . . . 1 . . . . . . . Terminal Index 2 | . . . . . . . 1 . 1 . . . . . Alert Level 4 | . . 2 . . . 2 . . . . . . . . Unreport Threat 2 | . . 1 . . . 1 . . . . . . . . Zone Layout 1 | . . . . . . . 1 . . . . . . . Fabricator Hacks 5 | . . . . . . . . . 3 . . . . 2 Network Status 1 | . . . . . . . . . 1 . . . . . Load Schematic 2 | . . . . . . . . . 1 . . . . 1 Build 2 | . . . . . . . . . 1 . . . . 1 Repair Station Hacks 8 | . 2 6 . . . . . . . . . . . . Scan Component 4 | . 1 3 . . . . . . . . . . . . Repair 4 | . 1 3 . . . . . . . . . . . . Recycling Unit Hacks 1 | . . . . . . . . . 1 . . . . . Retrieve Components 1 | . . . . . . . . . 1 . . . . . Scanalyzer . | . . . . . . . . . . . . . . . Garrison Access Hacks . | . . . . . . . . . . . . . . . Unauthorized Hacks 16 | . 2 4 . . . 3 2 . 4 . . . . 1 Terminals 15 | . 2 4 . . . 3 2 . 3 . . . . 1 Track 3 | . 1 1 . . . 1 . . . . . . . . Botnet 12 | . 1 3 . . . 2 2 . 3 . . . . 1 Fabricators . | . . . . . . . . . . . . . . . Repair Stations . | . . . . . . . . . . . . . . . Recycling Units 1 | . . . . . . . . . 1 . . . . . Mask 1 | . . . . . . . . . 1 . . . . . Scanalyzers . | . . . . . . . . . . . . . . . Garrison Access . | . . . . . . . . . . . . . . . Data Cores Recovered . | . . . . . . . . . . . . . . . Used . | . . . . . . . . . . . . . . . Hacking Detections 29 | . 2 10 . . . 5 4 . 5 . . . . 3 Full Trace Events 1 | . . . . . . . 1 . . . . . . . Feedback Events . | . . . . . . . . . . . . . . . Feedback Blocked . | . . . . . . . . . . . . . . . Robot Schematics Acquired 5 | . . . . . . . . . . . . 5 . . Robots Built . | . . . . . . . . . . . . . . . Matter . | . . . . . . . . . . . . . . . Time . | . . . . . . . . . . . . . . . Total Robot Build Rating . | . . . . . . . . . . . . . . . Part Schematics Acquired 8 | . 3 . . . . 1 . . . . . 4 . . Parts Built 1 | . . . . . . . . . 1 . . . . . Matter 314 | . . . . . . . . . 102 . . . . 212 Time 60 | . . . . . . . . . 25 . . . . 35 Total Part Build Rating 1 | . . . . . . . . . 1 . . . . . Parts Repaired 4 | . 1 3 . . . . . . . . . . . . Time 110 | . 26 84 . . . . . . . . . . . . Parts Recycled . | . . . . . . . . . . . . . . . Recycled Matter . | . . . . . . . . . . . . . . . Retrieved Matter . | . . . . . . . . . . . . . . . Retrieved Components 2 | . . . . . . . . . 2 . . . . . Parts Scanalyzed . | . . . . . . . . . . . . . . . Part Schematics Acquired . | . . . . . . . . . . . . . . . Parts Damaged . | . . . . . . . . . . . . . . . Bothacking | -11 -10 -9 -9 -9 -8 -8 -7 -7 -7 -7 -7 -7 -6 -6 ------------ Run | Scr Mat Mat Min Exi Min Mat Fac Was Fac Low Low Dat Pro Fac Used RIF Installer . | . . . . . . . . . . . . . . . Robots Hacked . | . . . . . . . . . . . . . . . Non-combat . | . . . . . . . . . . . . . . . Combat . | . . . . . . . . . . . . . . . Robot Hacks Applied . | . . . . . . . . . . . . . . . Relay Couplers Released . | . . . . . . . . . . . . . . . Robots Rewired 2 | . . . . . . . . . . 2 . . . . Allies Hacked . | . . . . . . . . . . . . . . . Hacks Repelled . | . . . . . . . . . . . . . . . Allies | -11 -10 -9 -9 -9 -8 -8 -7 -7 -7 -7 -7 -7 -6 -6 -------- Run | Scr Mat Mat Min Exi Min Mat Fac Was Fac Low Low Dat Pro Fac Total Allies 6 | . . . 2 . . . . 1 . 2 . . 1 . Largest Group 2 | . . . 2 2 . . . 1 . 2 2 . 1 . Highest-Rated Group 95 | . . . 45 45 . . . 31 . 64 64 . 95 . Highest-Rated Ally 95 | . . . 31 31 . . . 31 . 32 32 . 95 . Total Orders 1 | . . . . . . . . . . . . . . 1 EXPLORE 1 | . . . . . . . . . . . . . . 1 Ally Attacks 31 | . . . . . . . . 11 . . 8 . 12 . Total Damage 593 | . . . . . . . . 148 . . 164 . 281 . Kills 7 | . . . . . . . . . . . 4 . 3 . Allies Corrupted . | . . . . . . . . . . . . . . . Allies Melted . | . . . . . . . . . . . . . . . Intel | -11 -10 -9 -9 -9 -8 -8 -7 -7 -7 -7 -7 -7 -6 -6 ------- Run | Scr Mat Mat Min Exi Min Mat Fac Was Fac Low Low Dat Pro Fac Robot Analysis Total 2 | . . 1 . . . 1 . . . . . . . . Derelict Logs Recovered 4 | . . . 1 . . . . . . 2 . . 1 . Drone Launches 1 | . . . . . . . . . . . . . . 1 Drone Recoveries . | . . . . . . . . . . . . . . . Exploration | -11 -10 -9 -9 -9 -8 -8 -7 -7 -7 -7 -7 -7 -6 -6 ------------- Run | Scr Mat Mat Min Exi Min Mat Fac Was Fac Low Low Dat Pro Fac Turns Passed 8084 | 45 711 1540 299 248 197 569 452 174 1554 1163 567 44 157 364 Spaces Moved 4653 | 20 443 768 199 184 101 253 243 105 844 520 327 88 259 299 Core 571 | . . . . . . . . . . . 106 88 259 118 Treads 588 | . . 18 . . . 1 . 24 534 11 . . . . Legs 418 | 20 6 . . . . . . . . 171 221 . . . Wheels 3076 | . 437 750 199 184 101 252 243 81 310 338 . . . 181 Hover . | . . . . . . . . . . . . . . . Flight . | . . . . . . . . . . . . . . . Fastest Speed 50 | 120 95 110 135 135 135 135 135 135 135 135 50 50 50 50 Average Speed 132 | 120 109 133 135 135 135 137 152 148 154 160 154 50 50 97 Slowest Speed 260 | 120 120 260 135 135 135 260 165 160 160 260 205 50 100 130 Overloaded Moves . | . . . . . . . . . . . . . . . Propulsion Burnouts . | . . . . . . . . . . . . . . . Robots Hopped . | . . . . . . . . . . . . . . . Cave-ins Triggered . | . . . . . . . . . . . . . . . Exploration Rate (%) 42 | 3 46 58 63 54 26 26 8 79 29 61 47 70 61 13 Regions Visited 14 Branch Regions 7 Pre-discovered Areas 2 | . . . . 1 . . . . . . . 1 . . Known Exits Taken 4 | . . . . . . 1 . . 1 1 . . 1 . Unknown Exits Taken 8 | 1 1 1 1 1 1 . . . . . 1 1 . . Scrap Searched 5 | . . . . . . . . . . 2 1 . 2 . Spaces Dug 9 | . . . . . . . 1 . 5 1 1 . . 1 Terrain Destroyed 69 | . . . . . . . 3 31 8 25 1 . . 1 Melee 7 | . . . . . . . 1 . 3 1 1 . . 1 Projectile 31 | . . . . . . . 2 . 5 24 . . . . AOE 31 | . . . . . . . . 31 . . . . . . Terrain Rammed . | . . . . . . . . . . . . . . . Walls Destroyed . | . . . . . . . . . . . . . . . Machines Disabled . | . . . . . . . . . . . . . . . Actions | -11 -10 -9 -9 -9 -8 -8 -7 -7 -7 -7 -7 -7 -6 -6 --------- Run | Scr Mat Mat Min Exi Min Mat Fac Was Fac Low Low Dat Pro Fac Total 5969 | 28 580 1149 218 183 122 415 291 113 1033 739 369 87 283 359 Wait 571 | . 49 210 12 . . 96 2 . 59 75 13 . 16 39 Move 4640 | 19 442 767 198 183 100 252 243 104 843 519 326 87 258 299 Hop . | . . . . . . . . . . . . . . . Pick Up 76 | 1 17 17 1 . 1 5 5 . 15 8 5 . . 1 Fast Attach 49 | 1 1 7 . . . 6 3 1 12 3 4 . 5 6 Attach 42 | . 4 4 . . 1 2 3 2 6 9 6 . 1 4 Detach 11 | . . 1 . . . . . . 4 2 . . 2 2 Swap 95 | 1 6 23 . . . 7 6 2 26 18 6 . . . Drop 108 | . 11 39 1 . . 15 7 . 26 6 1 . 1 1 Fire 311 | 6 50 81 6 . 20 32 13 4 39 53 7 . . . Melee 21 | . . . . . . . 9 . 3 1 1 . . 7 Ram . | . . . . . . . . . . . . . . . Kick . | . . . . . . . . . . . . . . . Crush . | . . . . . . . . . . . . . . . Escape Stasis . | . . . . . . . . . . . . . . . Rewire 45 | . . . . . . . . . . 45 . . . . Trap . | . . . . . . . . . . . . . . . Miscellaneous . | . . . . . . . . . . . . . . . Route ------- -11/Scrapyard -10/Materials (discovered 3 exits: *Mat x2 / [*Min]) -9/Materials (discovered 4 exits: *Mat / [*Min] / [*Sto x2]) -9/Mines (discovered 2 exits: *Mat / *Exi) -9/Exiles -8/Mines -8/Materials (discovered 2 exits: *Fac x2) -7/Factory (discovered 2 exits: Low x2) -7/Waste -7/Factory (discovered 3 exits: *Fac x2 / *Low) -7/Lower Caves -7/Lower Caves -7/Data Miner -6/Proximity Caves -6/Factory History --------- Turn | Location | Event 1 | -11/Scrapyard | Discovered new exit (range 3) 46 | -11/Scrapyard | Entered Materials 286 | -10/Materials | Discovered new exit (range 14) 300 | -10/Materials | Build established: Mutant 446 | -10/Materials | Discovered new exit (range 15) 514 | -10/Materials | Discovered new exit (range 7) 548 | -10/Materials | Repaired Lgt. Treads 757 | -10/Materials | Entered another Materials area 757 | -9/Materials | Evolved 2 slots: Propulsion x1, Utility x1 1166 | -9/Materials | Repaired Arm. Wheel 1193 | -9/Materials | Repaired Lgt. Armor Plating 1220 | -9/Materials | Repaired Structural Scanner 1367 | -9/Materials | Build established: Scavenger-Mutant 1457 | -9/Materials | Discovered new exit (range 7) 1718 | -9/Materials | Discovered new exit (range 13) 1804 | -9/Materials | Discovered new exit (range 12) 2268 | -9/Materials | Discovered new exit (range 15) 2297 | -9/Materials | Entered Mines 2374 | -9/Mines | Learned location of 1 exit from Materials 2472 | -9/Mines | Build established: Mutant 2530 | -9/Mines | A weapon hastily lodged in a ceiling crevice suddenly fell to the ground 2551 | -9/Mines | Discovered new exit (range 5) 2585 | -9/Mines | Deemed a non-threat by the Exiles lab entrance 2585 | -9/Mines | Discovered new exit (range 5) 2596 | -9/Mines | Entered Exiles 2596 | -9/Exiles | Accompanied by 2 allies 2626 | -9/Exiles | Led the pair of lost Derelicts to a safe place 2630 | -9/Exiles | Met 8R-AWN 2652 | -9/Exiles | Met EX-HEX 2753 | -9/Exiles | Met EX-DEC 2758 | -9/Exiles | Learned location of Zion (-6) 2829 | -9/Exiles | Discovered new exit (range 12) 2844 | -9/Exiles | Entered Mines 3032 | -8/Mines | Discovered new exit (range 5) 3041 | -8/Mines | Entered Materials 3041 | -8/Materials | Evolved 2 slots: Propulsion x1, Utility x1 3042 | -8/Materials | Identified exit to Factory 3261 | -8/Materials | Build established: Scavenger-Mutant 3597 | -8/Materials | Discovered exit to Factory (range 5) 3610 | -8/Materials | Entered Factory 3610 | -7/Factory | Evolved 2 slots: Utility x2 3654 | -7/Factory | Build established: Mutant 3866 | -7/Factory | Identified exit to Lower Caves 4062 | -7/Factory | Sucked down chute 4062 | -7/Factory | Entered Waste 4063 | -7/Waste | Met a frightened Derelict 4077 | -7/Waste | EMP discharged 4116 | -7/Waste | Spotted C-40 Crusher 4148 | -7/Waste | Destroyed C-40 Crusher 4157 | -7/Waste | Spotted C-40 Crusher 4161 | -7/Waste | Spotted C-40 Crusher 4166 | -7/Waste | Spotted C-40 Crusher 4170 | -7/Waste | Spotted C-40 Crusher 4170 | -7/Waste | Crushed by Compactor (1 part destroyed, 1 dropped) 4177 | -7/Waste | EMP discharged 4177 | -7/Waste | System corruption reached 10% 4187 | -7/Waste | Spotted C-40 Crusher 4193 | -7/Waste | Crushed by Compactor (1 part destroyed, 1 dropped) 4196 | -7/Waste | Crushed by Compactor (1 part destroyed, 2 dropped) 4221 | -7/Waste | Discovered new exit (range 10) 4227 | -7/Waste | Lost 3 parts (1n1u1w) 4236 | -7/Waste | Entered Factory 4481 | -7/Factory | Build established: Scavenger-Mutant 4513 | -7/Factory | Fabricated Huge Storage Unit (x1) 4678 | -7/Factory | Discovered new exit (range 6) 4690 | -7/Factory | Identified exit to Factory 5373 | -7/Factory | Discovered exit to Factory (range 16) 5771 | -7/Factory | Discovered exit to Lower Caves (range 3) 5790 | -7/Factory | Entered Lower Caves 6328 | -7/Lower Caves | Learned 4 Factory zone layouts 6418 | -7/Lower Caves | Attracted the attention of an 0b10 checkpoint 6484 | -7/Lower Caves | Attracted the attention of an 0b10 outpost 6525 | -7/Lower Caves | Core integrity fell below 50% 6551 | -7/Lower Caves | Lost 5 parts (1p2n1u1w) 6737 | -7/Lower Caves | Learned Factory trap positions 6939 | -7/Lower Caves | Discovered new exit (range 7) 6949 | -7/Lower Caves | Identified exit to Lower Caves 6953 | -7/Lower Caves | Entered another Lower Caves area 6953 | -7/Lower Caves | Accompanied by 2 allies 7005 | -7/Lower Caves | Build established: Scavenger-Skirmisher 7174 | -7/Lower Caves | Lost 3 parts (1n1u1w) 7411 | -7/Lower Caves | Attracted the attention of an 0b10 outpost 7449 | -7/Lower Caves | Released all parts (9) 7479 | -7/Lower Caves | Lost 7 parts (4n2u1w) 7517 | -7/Lower Caves | Discovered new exit (range 8) 7520 | -7/Lower Caves | Entered Data Miner 7520 | -7/Data Miner | Discovered new exit (range 6) 7531 | -7/Data Miner | Met Data Miner 7541 | -7/Data Miner | Learned location of Section 7 (-2) 7541 | -7/Data Miner | Acquired the access code to Warlord's prototype stash 7549 | -7/Data Miner | Received God Mode back door access code from Data Miner 7564 | -7/Data Miner | Entered Proximity Caves 7678 | -6/Proximity Caves | Core integrity fell below 20% 7679 | -6/Proximity Caves | Escorted by Enhanced Grunt 7679 | -6/Proximity Caves | Learned Factory stockpile data 7707 | -6/Proximity Caves | Discovered exit to Factory (range 9) 7721 | -6/Proximity Caves | Entered Factory 7721 | -6/Factory | Evolved 2 slots: Propulsion x1, Utility x1 7723 | -6/Factory | Loaded intel: 83 trap records 7750 | -6/Factory | Build established: Mutant 7943 | -6/Factory | Spotted B-75 Beast 8050 | -6/Factory | Build established: Hacker-Mutant 8085 | -6/Factory | Self-destructed Last Messages --------------- Cmb. Gravmag System Rating: 6 Time: 35 Matter: 212 Initiate build sequence. >>Build Building Cmb. Gravmag System... ETC: 35 08068_ Penetrated by Slug. 08068_ Spk. Medium Treads destroyed. 08071_ Penetrated by Slug. 08071_ Drone Bay destroyed. 08073_ ALERT: Security rotation in progress. 08076_ Penetrated by Slug. 08079_ Imp. Sensor Array destroyed. 08080_ Structural Scanner destroyed. 08082_ Penetrated by Slug. 08082_ H-66 Slayer Hvy. Assault Rifle severed. 08083_ Arm. Huge Wheel destroyed. 08083_ Fission Core destroyed. Map ----- +----------------------------------------------------+ | ?????????????????????????????????????????????????? | | ?????????????????????????????????????????????????? | | ?????????????????????????????????????????????????? | | ????????? ????? ?????????????????????????????????? | | ????????" ????? ????? ##????????????????????????? | | ??? ????" "???" "???" #"?""?????????????????????? | | ??? ???? "??? "??? #"" F"####????????????????? | | ?? ?? ?? ??? #"" ""### ????????????????? | | ?"" "?""" """"" """"" # ????????????????? | | """ """"" """"" """"" ? # ????????????????? | | " """ """ """ ! """ # ????????????????? | | """ + ????????????????? | | """ """"" """"" """"" """ # ????????????????? | | """ """"" """"" """"" # ????????????????? | | " """ """ """ # ????????????????? | | ] % # ????????????????? | | k ##????????????????? | | BB ##??????????????^?? | | % BB = ##????????????????? | | ########; k ##????????????????? | | ##########;;####* ##????????????????? | | #####+#####????######;#### ##????????????????? | | ## #????## ! # ##????????????????? | | ## """ ##???## # ##???????????????^? | | ## """ ##???## "" #h ##????????????????? | | ## """ ##???## """ @ k ##???????????????^? | | ## ##???## "F # ##????????????????? | | ## """ ##???## """ # ##????????????????? | | ## ""? ##???## """ # ##????????????????? | | ## "????????## """ # ????????????????? | | ## ???????## # ??????????????? | | ########???????########### ????????????? | | ########???????########### ???????????? | | ????????????????????????## ??????????? | | ?????????????????????????####+#########??????????? | | ????????????????????????? ###??????????? | | ?????????????????????????????????????????????????? | | ?????????????????????????????????????????????????? | | ?????????????????????????????????????????????????? | | ?????????????????????????????????????????????????? | | ?????????????????????????????????????????????????? | | ?????????????????????????????????????????????????? | | ?????????????????????????????????????????????????? | | ?????????????????????????????????????????????????? | | ?????????????????????????????????????????????????? | | ?????????????????????????????????????????????????? | | ?????????????????????????????????????????????????? | | ?????????????????????????????????????????????????? | | ?????????????????????????????????????????????????? | | ?????????????????????????????????????????????????? | +----------------------------------------------------+ Best States ------------- Heat Dissipation 61 Energy Generation 18 Energy Capacity 310 Matter Stores 500 Matter Capacity 500 Sight Range 16 Robot Scan Range 15 Terrain Scan Range 16 Terrain Scan Density 10 Jamming Range 8 Armor Coverage 375 Resistance: KI 20 Resistance: TH 10 Propulsion Shielding 33 Weapon Cycling 15 Evasion (%) 55 Targeting Accuracy 8 Core Analysis 6 Recoil Reduction 4 Offensive Hacking 20 Defensive Hacking 10 Item Schematics ----------------- Lrg. Storage Unit | -10/Materials | Hacked Huge Storage Unit | -10/Materials | Hacked Med. Storage Unit | -10/Materials | Hacked Hacking Suite | -8/Materials | Hacked Combat Drone Bay | -7/Data Miner | Free Lgt. Regenerative Plating | -7/Data Miner | Free Exp. Flexi-carbon Leg | -7/Data Miner | Free Cmb. Gravmag System | -7/Data Miner | Free Robot Schematics ------------------ S-27 Virus | -7/Data Miner | Free G-50 Soldier | -7/Data Miner | Free X-72 Disruptor | -7/Data Miner | Free I-36 Angel | -7/Data Miner | Free I-47 Archangel | -7/Data Miner | Free Fabricated ------------ Huge Storage Unit | x1 | -7/Factory Alien Tech Used ----------------- None Achievements -------------- None Challenges ------------ None Game ------ Seed CannonGravityExtractor Manual? 0 Play Time 02:19:05 Cumulative 1161.2 hours Start 2021.08.21 @ 08:45:00 End 2021.08.25 @ 19:40:57 Sessions 13 Manual Loads 0 Difficulty Rogue Special Mode None Game No. 322 Rogue 322 Adventurer 0 Explorer 0 Win Type - Total 40 Types 25/6/6/3/0/0/0/0/0 Lore% 80 Gallery% 85 Achievement% 73 Wizard Run 0 Options --------- ASCII 1 Keyboard 1 Movement Numpad Keybinds 0 Fullscreen 1 Font 24/Smallcaps Map View 76x50 Tactical HUD 1 Map Filters NONE Filters NONE Steam 1 RUN: 8fe10774-200a-424d-a022-186aea489f42